[Event "Titled Tuesday Blitz April 4 Late 2023"]
[White "Vaglio Munoz, Jaime"]
[Black "olga-belka"]
[WhiteFideId "6500145"]
[WhiteElo "2199"]
[BlackElo "2293"]
[Result "1-0"]
[Round "10"]
[TimeControl "180+2"]
[Date "2023.04.04"]
[WhiteClock "0:02:02"]
[BlackClock "0:00:55"]

1. Nf3 {[%clk 0:03:00]}  Nf6 {[%clk 0:02:58]} 2. c4 {[%clk 0:02:59]}  g6 {[%clk 0:02:58]} 3. b3 {[%clk 0:02:59]}  Bg7 {[%clk 0:02:57]} 4. Bb2 {[%clk 0:03:00]}  O-O {[%clk 0:02:51]} 5. g3 {[%clk 0:03:00]}  d5 {[%clk 0:02:49]} 6. cxd5 {[%clk 0:02:58]}  Qxd5 {[%clk 0:02:45]} 7. Nc3 {[%clk 0:02:57]}  Qd8 {[%clk 0:02:45]} 8. Bg2 {[%clk 0:02:57]}  c6 {[%clk 0:02:43]} 9. O-O {[%clk 0:02:56]}  Nbd7 {[%clk 0:02:40]} 10. d4 {[%clk 0:02:55]}  Nb6 {[%clk 0:02:35]} 11. h3 {[%clk 0:02:52]}  Nbd5 {[%clk 0:02:34]} 12. Re1 {[%clk 0:02:49]}  Nxc3 {[%clk 0:02:28]} 13. Bxc3 {[%clk 0:02:48]}  Ne4 {[%clk 0:02:27]} 14. Bb4 {[%clk 0:02:42]}  a5 {[%clk 0:02:23]} 15. Ba3 {[%clk 0:02:40]}  Re8 {[%clk 0:02:19]} 16. Rc1 {[%clk 0:02:39]}  Bf5 {[%clk 0:02:10]} 17. g4 {[%clk 0:02:37]}  Be6 {[%clk 0:02:07]} 18. e3 {[%clk 0:02:34]}  Bd5 {[%clk 0:02:03]} 19. Nh2 {[%clk 0:02:22]}  Qd7 {[%clk 0:01:54]} 20. Nf1 {[%clk 0:02:19]}  Qe6 {[%clk 0:01:33]} 21. f3 {[%clk 0:02:14]}  Nd6 {[%clk 0:01:04]} 22. e4 {[%clk 0:02:11]}  Nb5 {[%clk 0:00:58]} 23. Bb2 {[%clk 0:02:04]}  Bxb3 {[%clk 0:00:55]} 24. axb3 {[%clk 0:02:04]}  Qxb3 {[%clk 0:00:55]} 25. Qxb3 {[%clk 0:02:02]} 1-0


[Site "https://www.chess.com"]

[Event "Titled Tuesday Blitz April 4 Late 2023"]
[White "Golubev, Mikhail"]
[Black "lluiss"]
[WhiteFideId "14100983"]
[WhiteElo "2374"]
[BlackElo "2261"]
[Result "0-1"]
[Round "10"]
[TimeControl "180+2"]
[Date "2023.04.04"]
[WhiteClock "0:00:01"]
[BlackClock "0:00:31"]

1. e4 {[%clk 0:02:55]}  c5 {[%clk 0:02:59]} 2. Nf3 {[%clk 0:02:55]}  d6 {[%clk 0:02:59]} 3. d4 {[%clk 0:02:53]}  cxd4 {[%clk 0:02:59]} 4. Nxd4 {[%clk 0:02:53]}  Nf6 {[%clk 0:02:59]} 5. Nc3 {[%clk 0:02:53]}  g6 {[%clk 0:02:59]} 6. Be3 {[%clk 0:02:53]}  Bg7 {[%clk 0:02:59]} 7. f3 {[%clk 0:02:53]}  O-O {[%clk 0:02:59]} 8. Qd2 {[%clk 0:02:54]}  Nc6 {[%clk 0:02:59]} 9. Bc4 {[%clk 0:02:52]}  Bd7 {[%clk 0:02:59]} 10. g4 {[%clk 0:02:48]}  Nxd4 {[%clk 0:02:41]} 11. Bxd4 {[%clk 0:02:45]}  Be6 {[%clk 0:02:42]} 12. Bb3 {[%clk 0:02:40]}  Qa5 {[%clk 0:02:29]} 13. O-O-O {[%clk 0:02:35]}  Bxb3 {[%clk 0:02:16]} 14. cxb3 {[%clk 0:02:34]}  Rfc8 {[%clk 0:02:15]} 15. Kb1 {[%clk 0:02:32]}  Nd7 {[%clk 0:02:07]} 16. Nd5 {[%clk 0:02:08]}  Qxd2 {[%clk 0:02:06]} 17. Nxe7+ {[%clk 0:02:06]}  Kf8 {[%clk 0:02:03]} 18. Bxg7+ {[%clk 0:02:05]}  Kxg7 {[%clk 0:02:03]} 19. Rxd2 {[%clk 0:02:05]}  Re8 {[%clk 0:02:02]} 20. Nd5 {[%clk 0:02:03]}  Ne5 {[%clk 0:02:02]} 21. Rf1 {[%clk 0:02:02]}  Rac8 {[%clk 0:01:53]} 22. g5 {[%clk 0:02:01]}  h6 {[%clk 0:01:52]} 23. h4 {[%clk 0:01:54]}  hxg5 {[%clk 0:01:52]} 24. hxg5 {[%clk 0:01:53]}  Rh8 {[%clk 0:01:52]} 25. f4 {[%clk 0:01:40]}  Nc6 {[%clk 0:01:47]} 26. a3 {[%clk 0:01:32]}  Rh3 {[%clk 0:01:40]} 27. Ka2 {[%clk 0:01:24]}  Rch8 {[%clk 0:01:28]} 28. Nf6 {[%clk 0:01:20]}  Na5 {[%clk 0:01:12]} 29. Rxd6 {[%clk 0:01:04]}  Nxb3 {[%clk 0:01:11]} 30. Rd7 {[%clk 0:00:51]}  Nc5 {[%clk 0:01:11]} 31. Rc7 {[%clk 0:00:50]}  b6 {[%clk 0:01:08]} 32. Rxa7 {[%clk 0:00:47]}  Rh2 {[%clk 0:01:07]} 33. e5 {[%clk 0:00:34]}  Rd8 {[%clk 0:01:02]} 34. a4 {[%clk 0:00:11]}  Nd3 {[%clk 0:01:01]} 35. Rb1 {[%clk 0:00:05]}  Nxf4 {[%clk 0:01:00]} 36. Rb7 {[%clk 0:00:03]}  Nd3 {[%clk 0:00:57]} 37. Rxb6 {[%clk 0:00:02]}  Nxe5 {[%clk 0:00:57]} 38. a5 {[%clk 0:00:01]}  Ra8 {[%clk 0:00:51]} 39. a6 {[%clk 0:00:01]}  Nf3 {[%clk 0:00:49]} 40. Rc1 {[%clk 0:00:01]}  Nxg5 {[%clk 0:00:48]} 41. Nd5 {[%clk 0:00:01]}  Rh4 {[%clk 0:00:40]} 42. Nc7 {[%clk 0:00:01]}  Ra7 {[%clk 0:00:34]} 43. Rc3 {[%clk 0:00:01]}  Ne4 {[%clk 0:00:31]} 0-1


[Site "https://www.chess.com"]

[Event "Titled Tuesday Blitz April 4 Late 2023"]
[White "Georg, Heinz"]
[Black "Buchenau, Frank"]
[WhiteFideId "4607295"]
[BlackFideId "4604350"]
[WhiteElo "2252"]
[BlackElo "2157"]
[Result "1-0"]
[Round "10"]
[TimeControl "180+2"]
[Date "2023.04.04"]
[WhiteClock "0:00:23"]
[BlackClock "0:00:03"]

1. e4 {[%clk 0:02:53]}  e6 {[%clk 0:03:00]} 2. c4 {[%clk 0:02:50]}  d5 {[%clk 0:02:59]} 3. exd5 {[%clk 0:02:50]}  exd5 {[%clk 0:03:00]} 4. cxd5 {[%clk 0:02:50]}  Nf6 {[%clk 0:03:00]} 5. Nc3 {[%clk 0:02:50]}  Nxd5 {[%clk 0:02:59]} 6. d4 {[%clk 0:02:48]}  Be6 {[%clk 0:02:48]} 7. Bd3 {[%clk 0:02:46]}  Be7 {[%clk 0:02:44]} 8. Nge2 {[%clk 0:02:46]}  O-O {[%clk 0:02:44]} 9. O-O {[%clk 0:02:46]}  Nc6 {[%clk 0:02:40]} 10. f4 {[%clk 0:02:42]}  Nxc3 {[%clk 0:02:03]} 11. bxc3 {[%clk 0:02:40]}  Na5 {[%clk 0:02:02]} 12. f5 {[%clk 0:02:37]}  Bc4 {[%clk 0:02:00]} 13. Bxc4 {[%clk 0:02:27]}  Nxc4 {[%clk 0:02:00]} 14. Qa4 {[%clk 0:02:27]}  Nb6 {[%clk 0:01:38]} 15. Qb3 {[%clk 0:02:26]}  Qd5 {[%clk 0:01:36]} 16. Nf4 {[%clk 0:02:15]}  Qxf5 {[%clk 0:01:31]} 17. c4 {[%clk 0:02:10]}  Bf6 {[%clk 0:01:17]} 18. Bb2 {[%clk 0:02:10]}  Qe4 {[%clk 0:01:08]} 19. Rae1 {[%clk 0:01:48]}  Qc6 {[%clk 0:00:55]} 20. c5 {[%clk 0:01:44]}  Na4 {[%clk 0:00:48]} 21. Nd5 {[%clk 0:01:37]}  Bh4 {[%clk 0:00:26]} 22. Ne7+ {[%clk 0:01:22]}  Bxe7 {[%clk 0:00:25]} 23. Rxe7 {[%clk 0:01:22]}  Nxb2 {[%clk 0:00:24]} 24. Rfxf7 {[%clk 0:01:22]}  Kh8 {[%clk 0:00:17]} 25. Qxb2 {[%clk 0:01:17]}  Rxf7 {[%clk 0:00:14]} 26. Rxf7 {[%clk 0:01:17]}  Qe6 {[%clk 0:00:13]} 27. Qf2 {[%clk 0:01:16]}  h6 {[%clk 0:00:11]} 28. Rxc7 {[%clk 0:01:14]}  Rd8 {[%clk 0:00:07]} 29. Rxb7 {[%clk 0:00:40]}  Qc4 {[%clk 0:00:07]} 30. Rf7 {[%clk 0:00:28]}  Qxd4 {[%clk 0:00:03]} 31. Qxd4 {[%clk 0:00:24]}  Rxd4 {[%clk 0:00:03]} 32. Rxa7 {[%clk 0:00:24]}  Rc4 {[%clk 0:00:03]} 33. Ra5 {[%clk 0:00:23]} 1-0


[Site "https://www.chess.com"]

[Event "Titled Tuesday Blitz April 4 Late 2023"]
[White "Novikova, Galina"]
[Black "Kornyukov, Alexey"]
[WhiteFideId "4157095"]
[BlackFideId "4150457"]
[WhiteElo "1953"]
[BlackElo "2352"]
[Result "0-1"]
[Round "10"]
[TimeControl "180+2"]
[Date "2023.04.04"]
[WhiteClock "0:00:08"]
[BlackClock "0:00:28"]

1. e4 {[%clk 0:03:00]}  c5 {[%clk 0:02:59]} 2. Nc3 {[%clk 0:02:59]}  Nc6 {[%clk 0:02:58]} 3. g3 {[%clk 0:02:53]}  g6 {[%clk 0:02:57]} 4. Bg2 {[%clk 0:02:53]}  Bg7 {[%clk 0:02:58]} 5. d3 {[%clk 0:02:52]}  d6 {[%clk 0:02:58]} 6. f4 {[%clk 0:02:52]}  Nf6 {[%clk 0:02:58]} 7. Nf3 {[%clk 0:02:53]}  O-O {[%clk 0:02:56]} 8. O-O {[%clk 0:02:53]}  Rb8 {[%clk 0:02:56]} 9. Be3 {[%clk 0:02:48]}  b5 {[%clk 0:02:53]} 10. h3 {[%clk 0:02:48]}  b4 {[%clk 0:02:48]} 11. Ne2 {[%clk 0:02:48]}  Qc7 {[%clk 0:02:41]} 12. g4 {[%clk 0:02:47]}  Nd7 {[%clk 0:02:36]} 13. f5 {[%clk 0:02:46]}  Bxb2 {[%clk 0:02:28]} 14. Rb1 {[%clk 0:02:46]}  Bg7 {[%clk 0:02:27]} 15. Qe1 {[%clk 0:02:46]}  Nde5 {[%clk 0:02:22]} 16. Qh4 {[%clk 0:02:44]}  Nxf3+ {[%clk 0:02:19]} 17. Bxf3 {[%clk 0:02:45]}  Nd4 {[%clk 0:02:05]} 18. Bh6 {[%clk 0:02:39]}  Nxe2+ {[%clk 0:01:52]} 19. Bxe2 {[%clk 0:02:39]}  Bb7 {[%clk 0:01:43]} 20. Bxg7 {[%clk 0:02:38]}  Kxg7 {[%clk 0:01:43]} 21. f6+ {[%clk 0:02:35]}  exf6 {[%clk 0:01:42]} 22. Rxf6 {[%clk 0:02:23]}  d5 {[%clk 0:01:39]} 23. Rbf1 {[%clk 0:01:55]}  Rbe8 {[%clk 0:01:30]} 24. g5 {[%clk 0:01:39]}  dxe4 {[%clk 0:01:17]} 25. dxe4 {[%clk 0:01:13]}  Rxe4 {[%clk 0:01:12]} 26. Qh6+ {[%clk 0:01:10]}  Kg8 {[%clk 0:01:12]} 27. Bf3 {[%clk 0:00:27]}  Qg3+ {[%clk 0:00:52]} 28. Kh1 {[%clk 0:00:27]}  Re2 {[%clk 0:00:37]} 29. Qxf8+ {[%clk 0:00:08]}  Kxf8 {[%clk 0:00:36]} 30. Rxf7+ {[%clk 0:00:08]}  Kxf7 {[%clk 0:00:34]} 31. Bxb7+ {[%clk 0:00:08]}  Ke7 {[%clk 0:00:28]} 0-1


[Site "https://www.chess.com"]

[Event "Titled Tuesday Blitz April 4 Late 2023"]
[White "KorolDimitriy75"]
[Black "Rian, Kapriaga"]
[BlackFideId "7103263"]
[WhiteElo "2370"]
[BlackElo "2314"]
[Result "0-1"]
[Round "10"]
[TimeControl "180+2"]
[Date "2023.04.04"]
[WhiteClock "0:00:01"]
[BlackClock "0:00:25"]

1. d4 {[%clk 0:03:00]}  Nf6 {[%clk 0:02:56]} 2. c4 {[%clk 0:03:00]}  e6 {[%clk 0:02:49]} 3. Nc3 {[%clk 0:03:01]}  Bb4 {[%clk 0:02:48]} 4. Qc2 {[%clk 0:03:01]}  d5 {[%clk 0:02:47]} 5. cxd5 {[%clk 0:02:59]}  Qxd5 {[%clk 0:02:46]} 6. e3 {[%clk 0:02:54]}  c5 {[%clk 0:02:42]} 7. Bd2 {[%clk 0:02:48]}  Bxc3 {[%clk 0:02:41]} 8. bxc3 {[%clk 0:02:42]}  O-O {[%clk 0:02:35]} 9. Nf3 {[%clk 0:02:41]}  Nc6 {[%clk 0:02:31]} 10. Be2 {[%clk 0:02:36]}  b6 {[%clk 0:02:26]} 11. O-O {[%clk 0:02:33]}  Bb7 {[%clk 0:02:24]} 12. Rfd1 {[%clk 0:01:59]}  Rfc8 {[%clk 0:02:19]} 13. Qb3 {[%clk 0:01:53]}  cxd4 {[%clk 0:02:09]} 14. cxd4 {[%clk 0:01:48]}  h6 {[%clk 0:02:03]} 15. Rac1 {[%clk 0:01:35]}  Ne4 {[%clk 0:02:00]} 16. Be1 {[%clk 0:01:33]}  Rc7 {[%clk 0:01:45]} 17. Qxd5 {[%clk 0:01:14]}  exd5 {[%clk 0:01:42]} 18. Nd2 {[%clk 0:01:12]}  Rac8 {[%clk 0:01:27]} 19. f3 {[%clk 0:00:43]}  Nxd4 {[%clk 0:01:15]} 20. Rxc7 {[%clk 0:00:32]}  Nxe2+ {[%clk 0:01:13]} 21. Kf1 {[%clk 0:00:31]}  Rxc7 {[%clk 0:01:12]} 22. fxe4 {[%clk 0:00:22]}  Nc3 {[%clk 0:01:10]} 23. Rc1 {[%clk 0:00:20]}  Ba6+ {[%clk 0:01:01]} 24. Kf2 {[%clk 0:00:12]}  Nxe4+ {[%clk 0:01:00]} 25. Nxe4 {[%clk 0:00:12]}  Rxc1 {[%clk 0:00:59]} 26. Nc3 {[%clk 0:00:12]}  Bc4 {[%clk 0:00:55]} 27. h3 {[%clk 0:00:10]}  Bxa2 {[%clk 0:00:53]} 28. Bd2 {[%clk 0:00:09]}  Rc2 {[%clk 0:00:51]} 29. Ke1 {[%clk 0:00:09]}  Bc4 {[%clk 0:00:49]} 30. Kd1 {[%clk 0:00:09]}  Bb3 {[%clk 0:00:35]} 31. Ke2 {[%clk 0:00:08]}  a5 {[%clk 0:00:31]} 32. Kd3 {[%clk 0:00:07]}  Rb2 {[%clk 0:00:28]} 33. Bc1 {[%clk 0:00:04]}  Rxg2 {[%clk 0:00:27]} 34. Ba3 {[%clk 0:00:02]}  b5 {[%clk 0:00:25]} 35. Nxb5 {[%clk 0:00:01]}  Bc4+ {[%clk 0:00:25]} 36. Kd4 {[%clk 0:00:01]}  Bxb5 {[%clk 0:00:25]} 0-1


[Site "https://www.chess.com"]

[Event "Titled Tuesday Blitz April 4 Late 2023"]
[White "Manu_ChessExcelsior"]
[Black "Vifleemskaia, Svetlana"]
[BlackFideId "4129490"]
[WhiteElo "2155"]
[BlackElo "1930"]
[Result "0-1"]
[Round "10"]
[TimeControl "180+2"]
[Date "2023.04.04"]
[WhiteClock "0:00:01"]
[BlackClock "0:00:07"]

1. e4 {[%clk 0:03:00]}  e5 {[%clk 0:02:42]} 2. Nf3 {[%clk 0:02:59]}  Nc6 {[%clk 0:02:41]} 3. Bc4 {[%clk 0:02:58]}  Nf6 {[%clk 0:02:41]} 4. Ng5 {[%clk 0:02:58]}  d5 {[%clk 0:02:40]} 5. exd5 {[%clk 0:02:58]}  Na5 {[%clk 0:02:40]} 6. Bb5+ {[%clk 0:02:58]}  c6 {[%clk 0:02:40]} 7. dxc6 {[%clk 0:02:58]}  bxc6 {[%clk 0:02:41]} 8. Qf3 {[%clk 0:02:58]}  Be7 {[%clk 0:02:41]} 9. Bxc6+ {[%clk 0:02:29]}  Nxc6 {[%clk 0:02:40]} 10. Qxc6+ {[%clk 0:02:30]}  Bd7 {[%clk 0:02:40]} 11. Qf3 {[%clk 0:02:21]}  Rc8 {[%clk 0:02:40]} 12. Nc3 {[%clk 0:02:20]}  Bc6 {[%clk 0:02:39]} 13. Qh3 {[%clk 0:02:17]}  h6 {[%clk 0:02:35]} 14. Nge4 {[%clk 0:02:17]}  Nxe4 {[%clk 0:02:34]} 15. Nxe4 {[%clk 0:02:12]}  Bxe4 {[%clk 0:02:34]} 16. d3 {[%clk 0:02:11]}  Bd5 {[%clk 0:02:33]} 17. c4 {[%clk 0:02:05]}  Bb7 {[%clk 0:02:30]} 18. O-O {[%clk 0:01:59]}  O-O {[%clk 0:02:29]} 19. Bd2 {[%clk 0:01:59]}  f5 {[%clk 0:02:20]} 20. Bc3 {[%clk 0:01:59]}  Bf6 {[%clk 0:02:20]} 21. Qxf5 {[%clk 0:01:58]}  e4 {[%clk 0:02:12]} 22. Qe6+ {[%clk 0:01:36]}  Kh8 {[%clk 0:02:11]} 23. d4 {[%clk 0:01:34]}  Bxd4 {[%clk 0:02:01]} 24. Rad1 {[%clk 0:01:10]}  Bxf2+ {[%clk 0:01:58]} 25. Kh1 {[%clk 0:01:08]}  Qb6 {[%clk 0:01:48]} 26. Qe7 {[%clk 0:00:49]}  Rg8 {[%clk 0:01:29]} 27. Rd7 {[%clk 0:00:49]}  Qg6 {[%clk 0:00:58]} 28. Rxb7 {[%clk 0:00:30]}  e3 {[%clk 0:00:58]} 29. Bd4 {[%clk 0:00:20]}  Rxc4 {[%clk 0:00:52]} 30. Bxe3 {[%clk 0:00:18]}  Bxe3 {[%clk 0:00:51]} 31. Qxe3 {[%clk 0:00:18]}  Rc2 {[%clk 0:00:48]} 32. Qf3 {[%clk 0:00:15]}  Kh7 {[%clk 0:00:39]} 33. b4 {[%clk 0:00:15]}  Rgc8 {[%clk 0:00:37]} 34. Rxa7 {[%clk 0:00:14]}  Rc1 {[%clk 0:00:35]} 35. Rf7 {[%clk 0:00:13]}  R8c2 {[%clk 0:00:28]} 36. h4 {[%clk 0:00:08]}  Rxf1+ {[%clk 0:00:23]} 37. Qxf1 {[%clk 0:00:08]}  Rxa2 {[%clk 0:00:21]} 38. Rf3 {[%clk 0:00:06]}  Rb2 {[%clk 0:00:19]} 39. b5 {[%clk 0:00:06]}  Rb1 {[%clk 0:00:17]} 40. Kh2 {[%clk 0:00:04]}  Rxf1 {[%clk 0:00:16]} 41. Rxf1 {[%clk 0:00:05]}  Qd6+ {[%clk 0:00:14]} 42. Kh3 {[%clk 0:00:04]}  Qd7+ {[%clk 0:00:13]} 43. Kh2 {[%clk 0:00:03]}  Qxb5 {[%clk 0:00:13]} 44. Rf3 {[%clk 0:00:04]}  h5 {[%clk 0:00:12]} 45. Rg3 {[%clk 0:00:03]}  Qc4 {[%clk 0:00:11]} 46. Kh3 {[%clk 0:00:03]}  g6 {[%clk 0:00:10]} 47. Rg5 {[%clk 0:00:04]}  Qe6+ {[%clk 0:00:09]} 48. Kh2 {[%clk 0:00:04]}  Qd6+ {[%clk 0:00:08]} 49. Kh3 {[%clk 0:00:04]}  Kg7 {[%clk 0:00:09]} 50. Rg3 {[%clk 0:00:02]}  Kf6 {[%clk 0:00:09]} 51. Rg5 {[%clk 0:00:02]}  Qf4 {[%clk 0:00:08]} 52. Rg3 {[%clk 0:00:01]}  Qe4 {[%clk 0:00:08]} 53. Rg5 {[%clk 0:00:02]}  Ke6 {[%clk 0:00:08]} 54. Kh2 {[%clk 0:00:01]}  Qxh4+ {[%clk 0:00:07]} 0-1


[Site "https://www.chess.com"]

[Event "Titled Tuesday Blitz April 4 Late 2023"]
[White "Kujawski, Adam"]
[Black "Lock, Gavin R"]
[WhiteFideId "1100920"]
[BlackFideId "408646"]
[WhiteElo "2054"]
[BlackElo "2104"]
[Result "1-0"]
[Round "10"]
[TimeControl "180+2"]
[Date "2023.04.04"]
[WhiteClock "0:00:09"]
[BlackClock "0:00:03"]

1. e4 {[%clk 0:03:00]}  c6 {[%clk 0:02:57]} 2. d4 {[%clk 0:03:00]}  d5 {[%clk 0:02:58]} 3. f3 {[%clk 0:03:00]}  Qb6 {[%clk 0:02:56]} 4. Nc3 {[%clk 0:02:58]}  dxe4 {[%clk 0:02:47]} 5. Bc4 {[%clk 0:02:57]}  Nf6 {[%clk 0:02:24]} 6. fxe4 {[%clk 0:02:53]}  e5 {[%clk 0:02:24]} 7. d5 {[%clk 0:02:16]}  Bg4 {[%clk 0:02:04]} 8. Nf3 {[%clk 0:02:10]}  Nbd7 {[%clk 0:02:04]} 9. dxc6 {[%clk 0:01:53]}  bxc6 {[%clk 0:02:04]} 10. Qe2 {[%clk 0:01:32]}  Bb4 {[%clk 0:02:02]} 11. Bd2 {[%clk 0:01:23]}  O-O {[%clk 0:02:01]} 12. O-O-O {[%clk 0:01:19]}  Rab8 {[%clk 0:01:35]} 13. Bb3 {[%clk 0:01:15]}  Nc5 {[%clk 0:01:35]} 14. h3 {[%clk 0:01:10]}  Nxb3+ {[%clk 0:01:34]} 15. cxb3 {[%clk 0:01:04]}  Bh5 {[%clk 0:01:14]} 16. g4 {[%clk 0:01:03]}  Bg6 {[%clk 0:01:14]} 17. Nxe5 {[%clk 0:01:00]}  Rfe8 {[%clk 0:01:13]} 18. Nxg6 {[%clk 0:00:56]}  hxg6 {[%clk 0:01:14]} 19. e5 {[%clk 0:00:44]}  Qa5 {[%clk 0:00:55]} 20. Rhe1 {[%clk 0:00:26]}  Bxc3 {[%clk 0:00:47]} 21. Bxc3 {[%clk 0:00:26]}  Qxa2 {[%clk 0:00:43]} 22. exf6 {[%clk 0:00:20]}  Rxe2 {[%clk 0:00:39]} 23. Rxe2 {[%clk 0:00:20]}  gxf6 {[%clk 0:00:29]} 24. Red2 {[%clk 0:00:19]}  Kg7 {[%clk 0:00:14]} 25. g5 {[%clk 0:00:18]}  Qxb3 {[%clk 0:00:13]} 26. Bxf6+ {[%clk 0:00:17]}  Kh7 {[%clk 0:00:12]} 27. Rd8 {[%clk 0:00:16]}  Qc4+ {[%clk 0:00:10]} 28. Kb1 {[%clk 0:00:15]}  Rxd8 {[%clk 0:00:09]} 29. Rxd8 {[%clk 0:00:14]}  Qf1+ {[%clk 0:00:06]} 30. Kc2 {[%clk 0:00:14]}  Qe2+ {[%clk 0:00:06]} 31. Kc3 {[%clk 0:00:13]}  Qf3+ {[%clk 0:00:05]} 32. Kc4 {[%clk 0:00:12]}  Qe4+ {[%clk 0:00:04]} 33. Kc5 {[%clk 0:00:10]}  Qf5+ {[%clk 0:00:04]} 34. Kd6 {[%clk 0:00:09]}  Qe6+ {[%clk 0:00:03]} 35. Kc7 {[%clk 0:00:09]} 1-0


[Site "https://www.chess.com"]

[Event "Titled Tuesday Blitz April 4 Late 2023"]
[White "Jiganchine, Roman"]
[Black "Tarnowska, Aleksandra"]
[WhiteFideId "2603667"]
[BlackFideId "1180967"]
[WhiteElo "2285"]
[BlackElo "1776"]
[Result "1-0"]
[Round "10"]
[TimeControl "180+2"]
[Date "2023.04.04"]
[WhiteClock "0:00:14"]
[BlackClock "0:00:12"]

1. e4 {[%clk 0:02:59]}  c5 {[%clk 0:03:00]} 2. Nf3 {[%clk 0:02:58]}  e6 {[%clk 0:02:59]} 3. g3 {[%clk 0:02:55]}  d6 {[%clk 0:02:55]} 4. Bg2 {[%clk 0:02:52]}  Nf6 {[%clk 0:02:55]} 5. O-O {[%clk 0:02:41]}  Be7 {[%clk 0:02:56]} 6. Re1 {[%clk 0:02:40]}  O-O {[%clk 0:02:48]} 7. c3 {[%clk 0:02:39]}  d5 {[%clk 0:02:38]} 8. exd5 {[%clk 0:02:17]}  Nxd5 {[%clk 0:02:37]} 9. d4 {[%clk 0:02:14]}  Nc6 {[%clk 0:02:26]} 10. Na3 {[%clk 0:02:05]}  cxd4 {[%clk 0:02:16]} 11. Nxd4 {[%clk 0:02:02]}  Nxd4 {[%clk 0:02:13]} 12. Qxd4 {[%clk 0:02:00]}  Bf6 {[%clk 0:02:13]} 13. Qe4 {[%clk 0:01:20]}  Rb8 {[%clk 0:01:19]} 14. Nb5 {[%clk 0:01:12]}  a6 {[%clk 0:01:17]} 15. Nd4 {[%clk 0:01:12]}  Bd7 {[%clk 0:01:12]} 16. h4 {[%clk 0:01:07]}  Qc7 {[%clk 0:00:44]} 17. h5 {[%clk 0:01:03]}  h6 {[%clk 0:00:43]} 18. Bf1 {[%clk 0:01:00]}  Bxd4 {[%clk 0:00:38]} 19. Qxd4 {[%clk 0:00:52]}  Bc6 {[%clk 0:00:27]} 20. Bf4 {[%clk 0:00:46]}  Nxf4 {[%clk 0:00:24]} 21. Qxf4 {[%clk 0:00:46]}  Qxf4 {[%clk 0:00:24]} 22. gxf4 {[%clk 0:00:47]}  Bf3 {[%clk 0:00:18]} 23. Re5 {[%clk 0:00:37]}  Rfd8 {[%clk 0:00:18]} 24. Kh2 {[%clk 0:00:35]}  Rd5 {[%clk 0:00:17]} 25. Rxd5 {[%clk 0:00:28]}  exd5 {[%clk 0:00:18]} 26. Bg2 {[%clk 0:00:25]}  Be4 {[%clk 0:00:14]} 27. Rd1 {[%clk 0:00:23]}  Re8 {[%clk 0:00:09]} 28. Rd2 {[%clk 0:00:20]}  b5 {[%clk 0:00:04]} 29. Kg3 {[%clk 0:00:20]}  Kf8 {[%clk 0:00:02]} 30. f3 {[%clk 0:00:20]}  Bf5 {[%clk 0:00:03]} 31. Rxd5 {[%clk 0:00:19]}  f6 {[%clk 0:00:02]} 32. Rd2 {[%clk 0:00:18]}  Kf7 {[%clk 0:00:03]} 33. a3 {[%clk 0:00:17]}  Be6 {[%clk 0:00:03]} 34. Bf1 {[%clk 0:00:17]}  Bb3 {[%clk 0:00:02]} 35. Kf2 {[%clk 0:00:16]}  Rc8 {[%clk 0:00:01]} 36. Rd4 {[%clk 0:00:16]}  Ke6 {[%clk 0:00:02]} 37. Re4+ {[%clk 0:00:15]}  Kf7 {[%clk 0:00:02]} 38. Rd4 {[%clk 0:00:15]}  Re8 {[%clk 0:00:02]} 39. Bd3 {[%clk 0:00:15]}  Kf8 {[%clk 0:00:02]} 40. Bg6 {[%clk 0:00:14]}  Rc8 {[%clk 0:00:02]} 41. Ke3 {[%clk 0:00:14]}  Bf7 {[%clk 0:00:02]} 42. Bf5 {[%clk 0:00:13]}  Re8+ {[%clk 0:00:02]} 43. Kf2 {[%clk 0:00:10]}  Bc4 {[%clk 0:00:02]} 44. Bg6 {[%clk 0:00:10]}  Re2+ {[%clk 0:00:03]} 45. Kg3 {[%clk 0:00:10]}  Ke7 {[%clk 0:00:03]} 46. Re4+ {[%clk 0:00:10]}  Rxe4 {[%clk 0:00:03]} 47. fxe4 {[%clk 0:00:10]}  Bd3 {[%clk 0:00:02]} 48. Kf2 {[%clk 0:00:10]}  Bc2 {[%clk 0:00:02]} 49. Ke3 {[%clk 0:00:10]}  Kd6 {[%clk 0:00:02]} 50. Kd4 {[%clk 0:00:10]}  Bb1 {[%clk 0:00:02]} 51. e5+ {[%clk 0:00:11]}  fxe5+ {[%clk 0:00:02]} 52. fxe5+ {[%clk 0:00:11]}  Ke6 {[%clk 0:00:02]} 53. Bxb1 {[%clk 0:00:12]}  a5 {[%clk 0:00:01]} 54. Be4 {[%clk 0:00:12]}  b4 {[%clk 0:00:01]} 55. axb4 {[%clk 0:00:12]}  axb4 {[%clk 0:00:02]} 56. cxb4 {[%clk 0:00:12]}  g5 {[%clk 0:00:02]} 57. b5 {[%clk 0:00:12]}  g4 {[%clk 0:00:02]} 58. b6 {[%clk 0:00:12]}  Kd7 {[%clk 0:00:02]} 59. Kc5 {[%clk 0:00:12]}  g3 {[%clk 0:00:02]} 60. Bg2 {[%clk 0:00:12]}  Kc8 {[%clk 0:00:02]} 61. Kc6 {[%clk 0:00:11]}  Kb8 {[%clk 0:00:02]} 62. Kc5 {[%clk 0:00:11]}  Kc8 {[%clk 0:00:02]} 63. b3 {[%clk 0:00:11]}  Kb8 {[%clk 0:00:02]} 64. e6 {[%clk 0:00:12]}  Kc8 {[%clk 0:00:03]} 65. e7 {[%clk 0:00:12]}  Kd7 {[%clk 0:00:03]} 66. b7 {[%clk 0:00:12]}  Kxe7 {[%clk 0:00:03]} 67. b8=Q {[%clk 0:00:11]}  Kf6 {[%clk 0:00:04]} 68. Qf4+ {[%clk 0:00:11]}  Kg7 {[%clk 0:00:04]} 69. Qxg3+ {[%clk 0:00:12]}  Kh7 {[%clk 0:00:05]} 70. Qg4 {[%clk 0:00:12]}  Kh8 {[%clk 0:00:06]} 71. Bf3 {[%clk 0:00:12]}  Kh7 {[%clk 0:00:06]} 72. Be4+ {[%clk 0:00:12]}  Kh8 {[%clk 0:00:07]} 73. Bf3 {[%clk 0:00:12]}  Kh7 {[%clk 0:00:07]} 74. b4 {[%clk 0:00:13]}  Kh8 {[%clk 0:00:08]} 75. b5 {[%clk 0:00:12]}  Kh7 {[%clk 0:00:09]} 76. Kd6 {[%clk 0:00:13]}  Kh8 {[%clk 0:00:10]} 77. Ke7 {[%clk 0:00:13]}  Kh7 {[%clk 0:00:11]} 78. Kf7 {[%clk 0:00:13]}  Kh8 {[%clk 0:00:12]} 79. Qg7# {[%clk 0:00:14]} 1-0


[Site "https://www.chess.com"]

[Event "Titled Tuesday Blitz April 4 Late 2023"]
[White "Oliveira, Tiago Batista"]
[Black "Burke, Paul"]
[WhiteFideId "2108291"]
[BlackFideId "2605767"]
[WhiteElo "1962"]
[BlackElo "1863"]
[Result "1-0"]
[Round "10"]
[TimeControl "180+2"]
[Date "2023.04.04"]
[WhiteClock "0:00:13"]
[BlackClock "0:00:25"]

1. d4 {[%clk 0:00:38]}  a6 {[%clk 0:02:57]} 2. c4 {[%clk 0:00:37]}  d6 {[%clk 0:02:57]} 3. Nf3 {[%clk 0:00:37]}  g6 {[%clk 0:02:57]} 4. g3 {[%clk 0:00:38]}  Nd7 {[%clk 0:02:57]} 5. Bg2 {[%clk 0:00:39]}  Bg7 {[%clk 0:02:57]} 6. O-O {[%clk 0:00:39]}  h6 {[%clk 0:02:58]} 7. Nbd2 {[%clk 0:00:39]}  e5 {[%clk 0:02:58]} 8. dxe5 {[%clk 0:00:37]}  dxe5 {[%clk 0:02:56]} 9. e4 {[%clk 0:00:37]}  Ne7 {[%clk 0:02:56]} 10. Qc2 {[%clk 0:00:37]}  O-O {[%clk 0:02:54]} 11. Rd1 {[%clk 0:00:37]}  Qe8 {[%clk 0:02:54]} 12. Nf1 {[%clk 0:00:37]}  f5 {[%clk 0:02:53]} 13. exf5 {[%clk 0:00:37]}  gxf5 {[%clk 0:02:53]} 14. Ne3 {[%clk 0:00:37]}  e4 {[%clk 0:02:47]} 15. Nd4 {[%clk 0:00:36]}  Ne5 {[%clk 0:02:43]} 16. f4 {[%clk 0:00:30]}  Nd3 {[%clk 0:02:29]} 17. Ne2 {[%clk 0:00:20]}  Be6 {[%clk 0:02:19]} 18. Nc3 {[%clk 0:00:19]}  c6 {[%clk 0:02:15]} 19. b3 {[%clk 0:00:16]}  Rd8 {[%clk 0:01:56]} 20. Ba3 {[%clk 0:00:16]}  Rf6 {[%clk 0:01:51]} 21. Rd2 {[%clk 0:00:16]}  Rg6 {[%clk 0:01:48]} 22. Rad1 {[%clk 0:00:16]}  h5 {[%clk 0:01:36]} 23. Nxe4 {[%clk 0:00:16]}  fxe4 {[%clk 0:01:32]} 24. Bxe4 {[%clk 0:00:16]}  Bg4 {[%clk 0:00:45]} 25. Bxg6 {[%clk 0:00:15]}  Qxg6 {[%clk 0:00:40]} 26. Rxd3 {[%clk 0:00:15]}  Rxd3 {[%clk 0:00:35]} 27. Rxd3 {[%clk 0:00:14]}  Kh7 {[%clk 0:00:25]} 28. Bxe7 {[%clk 0:00:13]} 1-0


[Site "https://www.chess.com"]